[Event "Nakhchivan Open 2022"]
[Site "Nakhchivan"]
[Date "2022.05.13"]
[Round "8.3"]
[White "Ahmadov, Fariz"]
[Black "Davudov, Tunar"]
[Result "1-0"]
[ECO "D05"]
[WhiteElo "2182"]
[BlackElo "1816"]
[Annotator "TA"]
[PlyCount "99"]
[EventDate "2022.05.08"]
[EventType "swiss"]
[EventCountry "AZE"]
[SourceTitle "playchess.com"]
[Source "ChessBase"]
[SourceQuality "1"]
[TimeControl "5400+30"]

{[%evp 19,99,2,0,0,0,-5,16,0,76,59,66,40,64,65,67,70,91,100,91,97,108,108,108,110,115,124,148,147,160,74,71,73,71,48,47,46,79,17,45,0,75,60,66,70,69,44,47,45,65,65,65,55,75,38,87,37,82,53,200,198,553,528,29983,29984,29984,29985,29982,548,29991,747,539,0,29991,6179,29990,29991,29996,29997,29997,29998,29998,29999]} 1. d4 {[%emt 0:00:02]} Nf6 {[%emt 0:00:05]} 2. Nf3 {[%emt 0:00:37]} e6 {[%emt 0:00:40]} 3. e3 {[%emt 0:00:35]} d5 {[%emt 0:01:07]} 4. Bd3 {[%emt 0:00:09]} c5 {[%emt 0:01:31]} 5. c3 {[%emt 0:00:05]} Nc6 {[%emt 0:00:17]} 6. O-O {[%emt 0:00:05]} Bd6 {[%emt 0:00:45]} 7. Nbd2 {[%emt 0:00:29][%cal Bb1d2,Bd2e4,Be4c3][%mdl 32]} O-O {[%emt 0:01:04]} 8. e4 {[%emt 0:01:37]} cxd4 {[%emt 0:09:51]} 9. cxd4 {[%emt 0:00:07]} dxe4 {[%emt 0:00:24]} 10. Nxe4 {[%emt 0:00:08]} Be7 {[%emt 0:00:55]} 11. Be3 {[%emt 0:08:39] B22: Sicilian: 2 c3.} Nd5 {[%emt 0:02:32]} 12. a3 {[%emt 0:01:14]} f5 {[%emt 0:14:25]} 13. Nc3 {[%emt 0:00:16] [#] The position is equal.} f4 $146 {[%emt 0:00:45]} (13... Nxe3 $11 {remains equal.} 14. fxe3 a6) ({Predecessor:} 13... Bf6 14. Qc2 Nxc3 15. bxc3 {1-0 (43) Gvetadze,S (2302)-Sichinava,M (1607) Tbilisi 2021}) 14. Bd2 {[%emt 0:01:24]} Bf6 $1 {[%emt 0:22:45]} 15. Qc2 {[%emt 0:01:47]} h6 {[%emt 0:01:41]} 16. Rad1 {[%emt 0:01:43]} Kh8 {[%emt 0:12:17]} 17. Rfe1 {[%emt 0:04:57]} Nxd4 {[%emt 0:12:39]} 18. Nxd4 {[%emt 0:00:19]} Bxd4 {[%emt 0:00:03]} 19. Nxd5 {[%emt 0:00:11]} exd5 {[%emt 0:00:36]} 20. Bb4 $1 {[%emt 0:00:13]} Bg4 {[%emt 0:02:26]} 21. Bxf8 {[%emt 0:15:48]} Bxd1 {[%emt 0:00:12]} 22. Bxg7+ $1 {[%emt 0:15:23]} Bxg7 {[%emt 0:00:02]} 23. Qxd1 {[%emt 0:00:28]} Qg5 {[%emt 0:09:25] Inhibits Qh5.} 24. h4 {[%emt 0:05:03]} ({White should try} 24. Bc2) 24... Qxh4 $16 {[%emt 0:02:41]} 25. Bb1 {White wants to mate with Qd3.} Qg5 {[%emt 0:02:24]} 26. Qd3 {[%emt 0:04:56][%csl Gb1][%cal Rd3h7][%mdl 1024] White has strong compensation.} Kg8 {[%emt 0:00:06]} 27. b4 {[%emt 0:05:11]} Qh5 {[%emt 0:01:46]} 28. Re7 {[%emt 0:01:21]} (28. Qb5 $16) 28... Qg5 {[%emt 0:00:33]} 29. Re1 {[%emt 0:03:36]} Qh5 $1 {[%emt 0:00:07]} 30. Ba2 {[%emt 0:02:22]} Rd8 {[%emt 0:00:15]} 31. Bb3 {[%emt 0:00:36]} Qg5 {[%emt 0:01:09] Inhibits Re7.} 32. a4 {[%emt 0:02:24]} b6 {[%emt 0:00:19]} 33. a5 {[%emt 0:00:36]} bxa5 {[%emt 0:00:22]} 34. bxa5 {[%emt 0:00:04][%cal Bb4a5,Ba5a6][%mdl 32]} h5 {[%emt 0:00:48]} 35. a6 {[%emt 0:00:25]} h4 {[%emt 0:00:30]} 36. Qf3 {[%emt 0:02:39]} Kh8 {[%emt 0:00:06]} (36... Kf8 $1 $14 {is more appropriate.}) 37. Bc2 {[%emt 0:00:40]} (37. Rb1 $16) 37... Qh6 {[%emt 0:00:55]} 38. Qg4 {[%emt 0:00:51] White is more active.} f3 {[%emt 0:00:28]} (38... h3 $14) 39. Qxf3 $18 {[%emt 0:00:42]} Qxa6 $2 {[%emt 0:00:27] [#]} (39... Qg5 40. Qf7 Qf6 41. Re8+ (41. Qxa7 Rf8 $16) 41... Rxe8 42. Qxe8+ Bf8 43. Qh5+ Qh6 44. Qe5+ (44. Qxd5 Qc1+ 45. Bd1 Kg7 $18) 44... Bg7 45. Qe8+ (45. Qxd5 Qc1+ 46. Bd1 Kh7 $16) (45. Qb8+ Bf8 $18) 45... Bf8 46. Qe5+ Bg7 47. Qb8+ (47. Qxd5 Qc1+ 48. Bd1 Kh7 $16) 47... Bf8) 40. Qf5 $1 {[%emt 0:01:27][%csl Gc2][%cal Rf5h7]} Qh6 {[%emt 0:00:23] Against Qh7+} 41. Re6 {[%emt 0:00:12]} Qc1+ {[%emt 0:00:08]} 42. Kh2 {[%emt 0:00:04][%csl Gc2][%cal Rf5h7]} Kg8 {[%emt 0:00:11]} 43. Rg6 {[%emt 0:01:44]} (43. Re7 $142 Qh6 44. Qf7+ Kh8 45. Re6 Qxe6 46. Qxe6 h3 47. Qxh3+ Kg8 48. Qe6+ Kh8 49. Bb3) 43... Qd2 {[%emt 0:01:23]} 44. Qe6+ {[%emt 0:04:00]} (44. Qe5 $142 Qh6 45. Qe6+ Kh8 46. Rxh6+ Bxh6 47. Qxh6+ Kg8 48. Qh7+ Kf8 49. Bg6 Rd7 50. Qxd7 Kg8 51. Qh7+ Kf8 52. Qf7#) 44... Kf8 {[%emt 0:00:30] [#]} 45. Qf5+ $40 {[%emt 0:01:56][%mdl 128] White has some attack.} (45. Rxg7 $1 $18 {[%mdl 512]} Qf4+ (45... Kxg7 46. Qe7+) 46. Kh3 Kxg7 47. Qe7+ Qf7 48. Qg5+ Kf8 49. Qxd8+ Qe8 50. Qd6+ Qe7 51. Qxd5) 45... Kg8 {[%emt 0:00:08]} 46. Rg5 {[%emt 0:00:49]} (46. Qe5 $142 Qh6 47. Qe6+ Kh8 48. Rxh6+ Bxh6 49. Qxh6+ Kg8 50. Qh7+ Kf8 51. Bg6 Rd7 52. Qxd7 Kg8 53. Qh7+ Kf8 54. Qf7#) 46... Qd4 {[%emt 0:00:52]} 47. Qe6+ {[%emt 0:00:15] White mates.} Kh8 {[%emt 0:00:23]} 48. Rh5+ {[%emt 0:00:10]} Bh6 {[%emt 0:00:09]} 49. Rxh6+ {[%emt 0:00:06]} Kg7 {[%emt 0:00:04]} 50. Rh7+ {[%emt 0:00:07] Weighted Error Value: White=0.53/Black=0.62} 1-0

[Event "Nakhchivan Open 2022"]
[Site "Nakhchivan"]
[Date "2022.05.13"]
[Round "8.4"]
[White "Lorparizangeneh, Shahin"]
[Black "Hasanov, Rashad"]
[Result "1-0"]
[ECO "A05"]
[WhiteElo "2502"]
[BlackElo "2142"]
[Annotator "TA"]
[PlyCount "97"]
[EventDate "2022.05.08"]
[EventType "swiss"]
[EventCountry "AZE"]
[SourceTitle "playchess.com"]
[Source "ChessBase"]
[SourceQuality "1"]
[TimeControl "5400+30"]

{[%evp 22,97,-16,-18,7,11,43,-8,45,44,53,49,77,38,77,75,97,93,97,68,121,138,118,127,140,138,115,115,129,110,119,96,126,119,169,158,244,222,312,114,114,113,113,121,116,114,125,112,120,117,118,118,156,155,174,168,203,185,197,193,215,203,240,216,276,265,293,280,314,295,291,293,314,300,479,448,398,333]} 1. Nf3 {[%emt 0:00:09]} Nf6 {[%emt 0:00:12]} 2. g3 {[%emt 0:00:05]} d5 {[%emt 0:00:35]} 3. Bg2 {[%emt 0:00:06]} e6 {[%emt 0:00:10]} 4. O-O {[%emt 0:00:06]} Be7 {[%emt 0:00:23]} 5. d3 {[%emt 0:00:24]} O-O {[%emt 0:00:22]} 6. Nbd2 {[%emt 0:00:07]} b6 {[%emt 0:01:06]} 7. e4 {[%emt 0:01:06]} Bb7 {[%emt 0:04:01]} 8. e5 {[%emt 0:01:12]} Nfd7 {[%emt 0:00:06]} 9. Re1 {[%emt 0:00:33]} c5 {[%emt 0:01:00]} 10. Nf1 {[%emt 0:00:39]} Nc6 {[%emt 0:02:42]} 11. h4 {[%emt 0:03:07]} Re8 {[%emt 0:12:20]} 12. N1h2 {[%emt 0:05:32]} Nf8 {[%emt 0:03:27] C00: French: Unusual White 2nd moves.} 13. Ng4 {[%emt 0:02:47]} b5 {[%emt 0:05:43] [#]} 14. Bg5 $146 {[%emt 0:13:21]} (14. c3 $14) ({Predecessor:} 14. h5 Rc8 15. h6 g6 16. a4 b4 17. Be3 Nd7 18. Qc1 Ba6 19. Qd2 Na5 20. Bg5 {1-0 (50) Panno,O-Eliskases,E Mar del Plata 1957}) 14... Nd4 {[%emt 0:14:06]} ({Black should try} 14... Bxg5 $11 15. Nxg5 h6) 15. Nxd4 $14 {[%emt 0:06:58]} cxd4 {[%emt 0:00:18]} 16. Qd2 {[%emt 0:00:20]} Rc8 {[%emt 0:05:39]} 17. Rac1 {[%emt 0:05:38] White is more active.} h6 {[%emt 0:07:29]} 18. Bxe7 {[%emt 0:02:07]} Qxe7 {[%emt 0:04:24]} 19. Nh2 $1 {[%emt 0:03:03]} Qc5 {[%emt 0:05:13]} 20. Nf3 {[%emt 0:02:41]} Ng6 {[%emt 0:01:19]} (20... b4 $14) 21. h5 $16 {[%emt 0:09:44]} Ne7 {[%emt 0:00:05]} 22. g4 {[%emt 0:00:03]} Nc6 {[%emt 0:01:39]} 23. g5 {[%emt 0:01:00]} hxg5 {[%emt 0:01:01]} 24. Qxg5 {[%emt 0:01:26]} Qe7 {[%emt 0:05:48]} 25. Qf4 {[%emt 0:03:28]} f6 {[%emt 0:03:29]} 26. Bh3 {[%emt 0:00:33] Threatens to win with exf6.} fxe5 {[%emt 0:07:03]} 27. Nxe5 {[%emt 0:00:31]} Qf6 {[%emt 0:00:26]} (27... Rf8 $16 28. Qg4 Nxe5 29. Rxe5 Rc6) 28. Qg3 $18 {[%emt 0:03:43]} Nxe5 {[%emt 0:00:46]} (28... Rcd8 $16 29. f4 a5) 29. Rxe5 {[%emt 0:00:02] Hoping for Rce1.} Rc6 {[%emt 0:01:05] [#]} (29... Re7 $142 30. Rg5 Rf8) 30. Rce1 $2 {[%emt 0:00:07]} (30. Rg5 $1 $18 {[%cal Rg5g6] and the rest is easy.}) 30... Bc8 $16 {[%emt 0:00:16]} 31. R1e2 {[%emt 0:01:38][%cal Oe5d5]} Rf8 {[%emt 0:02:44] [#]} 32. Rg5 $1 {[%emt 0:00:28] Black must now prevent Rg6.} Rc7 {[%emt 0:01:05]} 33. Rg6 {[%emt 0:02:21] Inhibits Qh6.} Qf4 {[%emt 0:00:13]} 34. Bxe6+ {[%emt 0:06:50]} Bxe6 {[%emt 0:00:06]} 35. Qxf4 {[%emt 0:00:07] Dancing on a razor blade.} ({Much weaker is} 35. Rexe6 $6 Qxg3+ 36. Rxg3 Rxc2 $11) 35... Rxf4 {[%emt 0:00:04]} 36. Rgxe6 {[%emt 0:00:05][%mdl 4096] Endgame KRR-KRR} Rf5 {[%emt 0:01:17]} 37. h6 {[%emt 0:03:42]} gxh6 {[%emt 0:05:41]} 38. Rxh6 {[%emt 0:00:30][%cal Be6h6,Bh6h4,Bh4d4][%mdl 32]} Kg7 {[%emt 0:00:14]} 39. Rh4 {[%emt 0:01:09]} Kf6 {[%emt 0:00:40]} 40. Rxd4 {[%emt 0:00:16]} Rh5 {[%emt 0:00:46] ( -> ...Rg7+)} 41. Rf4+ {[%emt 0:00:38]} Kg6 {[%emt 0:01:58]} 42. f3 {[%emt 0:04:30]} Rg5+ {[%emt 0:01:22]} 43. Kf2 {[%emt 0:00:24]} a5 {[%emt 0:00:24]} 44. c3 {[%emt 0:01:06]} Rc6 {[%emt 0:00:47]} 45. a3 {[%emt 0:03:17]} Rh5 {[%emt 0:00:34]} 46. Ke1 {[%emt 0:00:52]} Rh1+ {[%emt 0:01:11]} 47. Kd2 {[%emt 0:00:01]} Rh3 {[%emt 0:00:40]} (47... Rf6 {keeps fighting.}) 48. Rg2+ $18 {[%emt 0:00:47]} Kh6 {[%emt 0:00:42]} 49. Ke3 {Weighted Error Value: White=0.12 (very precise) /Black=0.28 (precise)} 1-0

[Event "Nakhchivan Open 2022"]
[Site "Nakhchivan"]
[Date "2022.05.13"]
[Round "8.5"]
[White "Garayev, Sadig"]
[Black "Haznedaroglu, Kivanc"]
[Result "1/2-1/2"]
[ECO "B44"]
[WhiteElo "2122"]
[BlackElo "2425"]
[Annotator "TA"]
[PlyCount "112"]
[EventDate "2022.05.08"]
[EventType "swiss"]
[EventCountry "AZE"]
[SourceTitle "playchess.com"]
[Source "ChessBase"]
[SourceQuality "1"]
[TimeControl "5400+30"]

{[%evp 16,112,0,0,3,-21,-11,-21,-12,-29,-19,-24,-17,-25,-15,-126,-21,-31,-44,-43,-34,-50,-40,-105,-54,-64,-72,-101,0,0,0,0,0,0,0,8,27,23,36,0,30,35,55,52,58,63,62,53,51,0,0,0,0,0,0,0,0,0,0,0,0,0,0,0,0,0,0,0,0,0,0,0,0,0,0,0,0,0,0,0,0,0,0,0,0,0,0,0,0,0,0,0,0,0,0,0,0,0,0]} 1. e4 {[%emt 0:00:46]} c5 {[%emt 0:01:49]} 2. Nf3 {[%emt 0:00:26]} e6 {[%emt 0:00:20]} 3. d4 {[%emt 0:00:08]} cxd4 {[%emt 0:00:18]} 4. Nxd4 {[%emt 0:00:07]} Nc6 {[%emt 0:00:06]} 5. Nxc6 {[%emt 0:04:16]} bxc6 {[%emt 0:00:01]} 6. Bd3 {[%emt 0:00:34]} d5 {[%emt 0:00:15]} 7. O-O {[%emt 0:01:34]} Nf6 {[%emt 0:00:10]} 8. Nc3 {[%emt 0:04:11]} Be7 {[%emt 0:00:26]} 9. b3 {[%emt 0:13:29]} O-O {[%emt 0:00:15] B40: Sicilian: 2...e6, Unusual lines.} 10. e5 {[%emt 0:02:20]} Nd7 {[%emt 0:00:18]} ({Much less strong is} 10... Bb4 11. exf6 Bxc3 12. fxg7 (12. Qh5 g6 $17) 12... Bxg7 13. Ba3 $11) 11. f4 {[%emt 0:00:42] [#]} Ba6 $1 {[%emt 0:14:39] [#]} 12. Rf3 $146 {[%emt 0:09:28]} (12. Be3 Bxd3) ({Predecessor:} 12. Bxh7+ Kxh7 13. Qh5+ Kg8 14. Rf3 f5 15. Rh3 Bc5+ 16. Kh1 Nb6 17. Qh7+ Kf7 18. Rh6 {0-1 (43) Calugar,A (2295)-Plotkin,M (2036) Kitchener 2014}) 12... Bxd3 {[%emt 0:00:11]} (12... f6 {feels hotter.} 13. exf6 Bxf6 14. Bxa6 Qb6+) 13. cxd3 {[%emt 0:01:01]} f6 {[%emt 0:03:48]} 14. d4 {[%emt 0:05:18]} c5 {[%emt 0:01:38]} 15. Rh3 {[%emt 0:20:28]} (15. exf6 $11 Bxf6 16. Be3) 15... fxe5 {[%emt 0:23:42]} (15... cxd4 $17 16. exf6 Bxf6) 16. dxe5 {[%emt 0:02:23] Qh5 is the strong threat.} Rf7 {[%emt 0:10:28]} 17. Qg4 {[%emt 0:05:44]} Nf8 {[%emt 0:00:21]} 18. Bb2 {[%emt 0:00:45]} Qb6 {[%emt 0:02:29]} 19. Kh1 {[%emt 0:08:04]} ({White should try} 19. Na4 $15 Qa6 20. Ba3) 19... c4 {[%emt 0:05:21]} (19... d4 $17 20. Na4 Qc6) 20. Ne2 {[%emt 0:06:06]} Bc5 {[%emt 0:00:27]} 21. Rd1 {[%emt 0:00:15] [#] Prevents d4.} cxb3 {[%emt 0:01:52]} (21... d4 $1 $17 22. Bc1 (22. Bxd4 Rd8 $17) 22... c3) 22. axb3 {[%emt 0:02:00]} Re8 {[%emt 0:02:54]} 23. Nd4 {[%emt 0:03:10]} Bxd4 {[%emt 0:01:17]} 24. Bxd4 {[%emt 0:00:17]} Qb5 {[%emt 0:01:24]} 25. Rc3 {[%emt 0:00:20]} Ng6 {[%emt 0:00:13]} 26. g3 $36 {[%emt 0:00:06][%mdl 2048] White has good play.} Rb7 {[%emt 0:01:56]} 27. Qf3 {[%emt 0:06:07]} Qd7 {[%emt 0:04:39]} 28. Rdc1 {[%emt 0:00:15]} Reb8 {[%emt 0:00:25]} 29. Bc5 {[%emt 0:01:26]} Rc8 {[%emt 0:04:22]} 30. Bd6 {[%emt 0:00:40]} Rxc3 {[%emt 0:00:02]} 31. Qxc3 {[%emt 0:00:03]} Ne7 {[%emt 0:00:51]} 32. Qc5 {[%emt 0:01:22]} ({Better is} 32. g4 $14) 32... h5 $11 {[%emt 0:02:02] The position is equal.} 33. Bxe7 {[%emt 0:01:19]} Qxe7 {[%emt 0:00:01]} 34. Qxe7 {[%emt 0:00:15]} Rxe7 {[%emt 0:00:02][%mdl 4096] Endgame KR-KR} 35. Kg2 {[%emt 0:00:25]} Kf7 {[%emt 0:01:07]} 36. Kf3 {[%emt 0:00:32]} Rb7 {[%emt 0:00:15]} 37. Rc3 {[%emt 0:00:06]} g5 {[%emt 0:01:25]} 38. g4 {[%emt 0:02:21]} Rb4 {[%emt 0:05:46]} 39. gxh5 {[%emt 0:00:38]} Rxf4+ {[%emt 0:08:13]} 40. Kg3 {[%emt 0:00:01]} Kg7 {[%emt 0:01:35]} 41. Rc6 {[%emt 0:00:43]} Kh6 {[%emt 0:00:12]} 42. Rxe6+ {[%emt 0:00:11]} Kxh5 {[%emt 0:00:02]} 43. Rd6 {[%emt 0:01:01]} d4 {[%emt 0:01:55]} 44. e6 {[%emt 0:00:33]} Re4 {[%emt 0:00:07]} 45. e7 {[%emt 0:00:26]} Rxe7 {[%emt 0:00:06]} 46. Rxd4 {[%emt 0:00:02]} Re3+ {[%emt 0:00:04]} 47. Kg2 {[%emt 0:00:13]} Rxb3 {[%emt 0:00:04]} 48. Ra4 $1 {[%emt 0:00:10] Inhibits Ra3.} Rb7 {[%emt 0:02:34]} 49. Kg3 {[%emt 0:00:05]} Rg7 {[%emt 0:00:09]} 50. Ra5 {[%emt 0:00:25]} Kg6 {[%emt 0:00:46]} 51. Kg4 {[%emt 0:00:48]} Kf6 {[%emt 0:00:02]} 52. Ra6+ {[%emt 0:00:41]} Ke5 {[%emt 0:00:05]} 53. h3 {[%emt 0:00:40]} Kd5 {[%emt 0:01:49]} 54. Kh5 {[%emt 0:00:17]} Kc5 {[%emt 0:01:09]} 55. Kh6 {[%emt 0:00:16]} Kb5 {[%emt 0:00:25]} 56. Ra1 {[%emt 0:00:02]} Rg8 {[%emt 0:00:46] Weighted Error Value: White=0.11 (very precise) /Black=0.10 (very precise)} 1/2-1/2

[Event "Nakhchivan Open 2022"]
[Site "Nakhchivan"]
[Date "2022.05.13"]
[Round "8.6"]
[White "Gasimov, Parviz"]
[Black "Movahed, Sina"]
[Result "1-0"]
[ECO "B53"]
[WhiteElo "2331"]
[BlackElo "2051"]
[Annotator "TA"]
[PlyCount "133"]
[EventDate "2022.05.08"]
[EventType "swiss"]
[EventCountry "AZE"]
[SourceTitle "playchess.com"]
[Source "ChessBase"]
[SourceQuality "1"]
[TimeControl "5400+30"]

{[%evp 11,133,12,16,20,22,18,24,19,17,15,16,18,36,15,41,14,22,27,17,22,31,0,16,0,0,0,0,0,0,0,33,30,76,71,165,148,294,294,266,163,231,210,197,152,158,150,146,141,212,179,246,250,361,353,763,812,799,773,2045,852,887,865,811,134,811,789,895,849,1903,805,796,764,1153,514,581,558,3504,3115,5361,5297,2575,2534,6067,6103,3799,3101,29975,29976,29980,29981,29981,29982,29978,29979,29977,29978,29978,29977,29977,29977,29976,29977,29977,29978,29980,2575,6586,4300,29980,29981,29977,29980,29980,29981,29981,29982,29982,29983,29983,29984,29988,29987,29991,29992]} 1. e4 c5 {[%emt 0:04:16]} 2. Nf3 {[%emt 0:00:16]} d6 {[%emt 0:00:30]} 3. d4 {[%emt 0:00:06]} cxd4 {[%emt 0:00:06]} 4. Qxd4 {[%emt 0:00:07]} Nc6 {[%emt 0:00:07]} 5. Bb5 {[%emt 0:00:15]} Bd7 {[%emt 0:00:13]} 6. Qd3 {[%emt 0:00:22]} Nf6 {[%emt 0:00:25] 6...g6 deserves study.} 7. c4 {[%emt 0:01:03] B53: Sicilian: 2...d6: Lines with Qxd4.} a6 {[%emt 0:01:30]} 8. Bxc6 {[%emt 0:01:08]} Bxc6 {[%emt 0:00:16]} 9. Nc3 {[%emt 0:00:06] White has an edge.} g6 {[%emt 0:00:27]} 10. O-O {[%emt 0:04:04]} Bg7 {[%emt 0:00:28]} 11. Nd4 {[%emt 0:01:23]} Nd7 {[%emt 0:00:33]} 12. Be3 {[%emt 0:02:30] [#]} Rc8 $146 {[%emt 0:00:28]} ({Predecessor:} 12... O-O 13. f3 Rc8 14. Qd2 Nc5 15. Rac1 Ne6 16. Nxe6 fxe6 17. Bd4 Bxd4+ 18. Qxd4 Qa5 {½-½ (43) Kokarev,D (2601)-Bocharov,I (2557) St Petersburg 2019}) 13. Rac1 {[%emt 0:01:43]} ({Much weaker is} 13. Nxc6 Rxc6 14. Bd4 Ne5 15. Bxe5 Bxe5 $11) 13... Ne5 {[%emt 0:00:29]} 14. Qe2 {[%emt 0:01:36]} Bd7 {[%emt 0:00:23] A strong pair of Bishops.} 15. Nd5 {[%emt 0:05:01][%cal Od4f5]} O-O {[%emt 0:00:16]} ({Don't do} 15... e6 16. Nb6 $1 $16) 16. Bg5 {[%emt 0:04:12][%cal Be3g5,Bg5h4,Bh4e1][%mdl 32]} Re8 {[%emt 0:00:13]} (16... f6 $5 {[%cal Rf6g5]} 17. Be3 e6 $11) 17. Rfd1 {[%emt 0:07:04]} h6 {[%emt 0:01:21]} 18. Bh4 {[%emt 0:01:52]} Nc6 {[%emt 0:00:34]} 19. Nxc6 {[%emt 0:06:30]} bxc6 {[%emt 0:00:27]} 20. Ne3 {[%emt 0:08:51]} Qa5 {[%emt 0:01:40]} 21. b3 {[%emt 0:04:26][%cal Oc4c5]} Be6 {[%emt 0:00:14]} (21... Qe5 $11) 22. f4 $16 {[%emt 0:03:29][%cal Bf2f4,Bf4f5][%mdl 32]} g5 {[%emt 0:07:02]} (22... Rcd8 $16) 23. Be1 $18 {[%emt 0:09:46]} Qa3 {[%emt 0:02:01]} (23... Qc5 $16) 24. f5 $1 {[%emt 0:07:18]} Bd7 {[%emt 0:00:16]} 25. Bc3 {[%emt 0:00:25]} Bxc3 {[%emt 0:00:41]} (25... f6 $142 26. Bd4 e6) 26. Rxc3 {[%emt 0:00:01][%cal Oc4c5] aiming for c5!} Qc5 {[%emt 0:00:44]} 27. Rcd3 {[%emt 0:01:51] And now Qh5 would win.} Kg7 {[%emt 0:08:33]} 28. Qb2+ {[%emt 0:06:18]} f6 {[%emt 0:00:42]} 29. b4 {[%emt 0:00:29]} Qa7 {[%emt 0:00:43]} (29... Rb8 $16) 30. c5 $1 {[%emt 0:01:38][%cal Od3d6]} Rcd8 {[%emt 0:03:42]} (30... Rb8 {might work better.}) 31. Kh1 {[%emt 0:03:46]} d5 {[%emt 0:05:33]} (31... a5 $142 32. cxd6 e5) 32. exd5 {[%emt 0:00:58]} Bc8 $2 {[%emt 0:00:51]} (32... Rb8 33. Qe2 Rxb4) 33. Qe2 {[%emt 0:04:21]} cxd5 {[%emt 0:03:01]} 34. Qh5 {[%emt 0:00:49] Threatens to win with Qg6+.} Rh8 {[%emt 0:00:19]} 35. Rxd5 {[%emt 0:02:10]} (35. Qg6+ $142 Kf8 36. Nxd5 Bxf5 37. Qxf5) 35... Rxd5 {[%emt 0:00:27]} 36. Rxd5 {[%emt 0:01:43]} ({Weaker is} 36. Nxd5 Bxf5 37. Qf3 Be6 $16) 36... Qc7 {[%emt 0:00:17]} 37. c6 $2 {[%emt 0:05:09]} (37. Qg6+ $18 {is more deadly.} Kf8 38. c6) 37... Kf8 $2 {[%emt 0:00:27][%mdl 8192] Black cannot hold the game after this.} (37... Rd8 $16) 38. Qg6 {[%emt 0:01:02]} h5 {[%emt 0:00:11]} 39. Nc4 {[%emt 0:01:17]} h4 {[%emt 0:00:34] [#]} 40. h3 {[%emt 0:01:14]} (40. Nd6 $142 $1 {[%mdl 512]} exd6 41. Qxf6+ Kg8 42. Rxd6) 40... Rg8 {[%emt 0:00:18]} 41. Qh6+ {[%emt 0:00:06]} Kf7 {[%emt 0:01:40]} 42. Qh5+ {[%emt 0:00:26]} (42. a4 $142 Ke8 43. Qh5+ Kf8 44. b5 axb5 45. axb5 Bxf5 46. Rxf5) 42... Kf8 {[%emt 0:00:30]} 43. a4 {[%emt 0:00:55]} g4 {[%emt 0:02:50]} 44. hxg4 {[%emt 0:00:49]} h3 {[%emt 0:00:13]} 45. b5 {[%emt 0:00:54]} hxg2+ {[%emt 0:01:01]} 46. Kxg2 {[%emt 0:01:16][%cal Bh1g2,Bg2f1,Bf1g1][%mdl 32]} Kg7 {[%emt 0:01:43]} 47. Qg6+ {[%emt 0:00:20]} Kf8 {[%emt 0:00:08]} 48. Qh6+ {[%emt 0:00:01]} Kf7 {[%emt 0:00:27]} 49. Kf1 {[%emt 0:01:56]} Bxf5 {[%emt 0:01:35]} 50. gxf5 {[%emt 0:01:20]} Rg1+ {[%emt 0:02:32]} 51. Kxg1 {[%emt 0:00:14]} Qg3+ {[%emt 0:00:06] [#]} 52. Kf1 $1 {[%emt 0:00:11]} Qf3+ {[%emt 0:00:06]} 53. Ke1 {[%emt 0:00:04]} Qxd5 {[%emt 0:00:09]} 54. Qh7+ {[%emt 0:00:21]} Kf8 {[%emt 0:00:26]} 55. Qh8+ {[%emt 0:00:02]} Kf7 {[%emt 0:00:13]} 56. Qh5+ {[%emt 0:00:05]} Kg7 {[%emt 0:00:14]} 57. Qg4+ {[%emt 0:01:02]} Kf8 {[%emt 0:00:12]} 58. Ne3 {[%emt 0:00:56]} (58. Nb6 $142 Qe5+ 59. Kf1 Qa1+ 60. Kg2 Qb2+ 61. Kh3 e5 62. Nd7+ Ke7 63. Qg7+ Kd6 64. Qxf6+ Kd5 65. Qe6+ Ke4 66. Qc4+ Kf3 67. Qg4+ Ke3 68. Qg3+ Ke4 69. bxa6) 58... Qc5 {[%emt 0:00:11]} 59. Qe2 {[%emt 0:00:24] Intending Qd3 and mate.} Qb4+ {[%emt 0:00:45]} 60. Qd2 {[%emt 0:00:39] White mates.} Qh4+ {[%emt 0:00:06]} 61. Ke2 {[%emt 0:00:17]} Qh2+ {[%emt 0:00:45]} 62. Kd1 {[%emt 0:00:24]} Qh1+ {[%emt 0:00:09]} 63. Kc2 {[%emt 0:00:06]} Qe4+ {[%emt 0:00:06]} 64. Kb3 {[%emt 0:00:35]} Qb1+ {[%emt 0:00:55]} 65. Kc4 {[%emt 0:00:15]} axb5+ {[%emt 0:00:33]} 66. axb5 {[%emt 0:00:05]} e5 {[%emt 0:00:18]} 67. Qb4+ {[%emt 0:00:31] Weighted Error Value: White=0.40/Black=0.55} 1-0